[Event "Titled Tuesday Blitz March 28 Late 2023"]
[White "Rios Escobar, Adan"]
[Black "Spata, German"]
[WhiteFideId "3403645"]
[BlackFideId "113026"]
[WhiteElo "2413"]
[BlackElo "2238"]
[Result "0-1"]
[Round "08"]
[TimeControl "180+2"]
[Date "2023.03.28"]
[WhiteClock "0:00:02"]
[BlackClock "0:00:14"]

1. d4 {[%clk 0:02:58]}  d5 {[%clk 0:02:56]} 2. g3 {[%clk 0:02:58]}  e6 {[%clk 0:02:56]} 3. Bg2 {[%clk 0:02:58]}  Nf6 {[%clk 0:02:57]} 4. Nf3 {[%clk 0:02:58]}  Be7 {[%clk 0:02:58]} 5. O-O {[%clk 0:02:58]}  O-O {[%clk 0:02:59]} 6. c4 {[%clk 0:02:59]}  c6 {[%clk 0:02:59]} 7. Qc2 {[%clk 0:02:59]}  b6 {[%clk 0:02:59]} 8. Rd1 {[%clk 0:02:59]}  Bb7 {[%clk 0:03:00]} 9. Nbd2 {[%clk 0:02:56]}  Na6 {[%clk 0:03:00]} 10. a3 {[%clk 0:02:51]}  Rc8 {[%clk 0:02:47]} 11. b4 {[%clk 0:02:51]}  c5 {[%clk 0:02:47]} 12. b5 {[%clk 0:02:50]}  Nc7 {[%clk 0:02:45]} 13. dxc5 {[%clk 0:02:51]}  Bxc5 {[%clk 0:02:44]} 14. Nb3 {[%clk 0:02:42]}  Nxb5 {[%clk 0:02:32]} 15. Nxc5 {[%clk 0:02:38]}  Rxc5 {[%clk 0:02:32]} 16. a4 {[%clk 0:02:28]}  Nd6 {[%clk 0:02:25]} 17. Ne5 {[%clk 0:02:21]}  Nd7 {[%clk 0:01:44]} 18. Ba3 {[%clk 0:01:57]}  Nxe5 {[%clk 0:01:41]} 19. Bxc5 {[%clk 0:01:57]}  bxc5 {[%clk 0:01:40]} 20. Qb2 {[%clk 0:01:58]}  Nexc4 {[%clk 0:01:38]} 21. Qc1 {[%clk 0:01:51]}  f5 {[%clk 0:01:30]} 22. Rb1 {[%clk 0:01:50]}  Bc6 {[%clk 0:01:30]} 23. a5 {[%clk 0:01:28]}  Qxa5 {[%clk 0:01:28]} 24. Ra1 {[%clk 0:01:28]}  Qb6 {[%clk 0:01:23]} 25. Qg5 {[%clk 0:01:26]}  Qc7 {[%clk 0:01:12]} 26. Rdb1 {[%clk 0:01:24]}  a5 {[%clk 0:01:11]} 27. h4 {[%clk 0:01:23]}  a4 {[%clk 0:01:12]} 28. h5 {[%clk 0:01:23]}  h6 {[%clk 0:01:12]} 29. Qf4 {[%clk 0:01:14]}  a3 {[%clk 0:01:08]} 30. Ra2 {[%clk 0:01:10]}  Rb8 {[%clk 0:01:02]} 31. Rba1 {[%clk 0:01:09]}  Rb2 {[%clk 0:00:57]} 32. g4 {[%clk 0:01:04]}  Rxa2 {[%clk 0:00:56]} 33. Rxa2 {[%clk 0:01:05]}  Qb7 {[%clk 0:00:52]} 34. Rxa3 {[%clk 0:00:34]}  Nxa3 {[%clk 0:00:43]} 35. Qxd6 {[%clk 0:00:34]}  Qd7 {[%clk 0:00:33]} 36. Qxc5 {[%clk 0:00:34]}  Nc4 {[%clk 0:00:32]} 37. gxf5 {[%clk 0:00:35]}  exf5 {[%clk 0:00:32]} 38. Bf3 {[%clk 0:00:26]}  Ne5 {[%clk 0:00:32]} 39. Bg2 {[%clk 0:00:22]}  Ng4 {[%clk 0:00:31]} 40. Bf3 {[%clk 0:00:15]}  Nf6 {[%clk 0:00:31]} 41. e3 {[%clk 0:00:09]}  Ne4 {[%clk 0:00:31]} 42. Qb4 {[%clk 0:00:07]}  Qe8 {[%clk 0:00:24]} 43. Qb6 {[%clk 0:00:04]}  Kh7 {[%clk 0:00:21]} 44. Qc7 {[%clk 0:00:05]}  Nf6 {[%clk 0:00:17]} 45. Qe5 {[%clk 0:00:05]}  Qxe5 {[%clk 0:00:16]} 46. Kg2 {[%clk 0:00:03]}  Ne4 {[%clk 0:00:15]} 47. Kg1 {[%clk 0:00:02]}  Qf6 {[%clk 0:00:15]} 48. Kf1 {[%clk 0:00:02]}  Qg5 {[%clk 0:00:16]} 49. Ke2 {[%clk 0:00:02]}  f4 {[%clk 0:00:15]} 50. exf4 {[%clk 0:00:01]}  Qxf4 {[%clk 0:00:16]} 51. Bg2 {[%clk 0:00:01]}  Bb5+ {[%clk 0:00:16]} 52. Kd1 {[%clk 0:00:02]}  Qd2# {[%clk 0:00:14]} 0-1


[Site "https://www.chess.com"]

[Event "Titled Tuesday Blitz March 28 Late 2023"]
[White "Fiorito, Joaquin"]
[Black "marik_spb"]
[WhiteFideId "180173"]
[WhiteElo "2157"]
[BlackElo "2410"]
[Result "0-1"]
[Round "08"]
[TimeControl "180+2"]
[Date "2023.03.28"]
[WhiteClock "0:01:31"]
[BlackClock "0:00:39"]

1. d4 {[%clk 0:03:00]}  Nf6 {[%clk 0:02:59]} 2. c4 {[%clk 0:02:58]}  e6 {[%clk 0:03:00]} 3. Nc3 {[%clk 0:02:59]}  Bb4 {[%clk 0:03:00]} 4. f3 {[%clk 0:02:59]}  d5 {[%clk 0:02:58]} 5. a3 {[%clk 0:02:59]}  Bxc3+ {[%clk 0:02:57]} 6. bxc3 {[%clk 0:03:00]}  c5 {[%clk 0:02:55]} 7. cxd5 {[%clk 0:03:00]}  O-O {[%clk 0:02:41]} 8. e3 {[%clk 0:02:58]}  Nxd5 {[%clk 0:02:36]} 9. Bd2 {[%clk 0:02:42]}  cxd4 {[%clk 0:02:22]} 10. cxd4 {[%clk 0:02:41]}  Nc6 {[%clk 0:02:17]} 11. Bd3 {[%clk 0:02:24]}  f5 {[%clk 0:01:20]} 12. Ne2 {[%clk 0:02:22]}  e5 {[%clk 0:01:16]} 13. e4 {[%clk 0:02:01]}  fxe4 {[%clk 0:01:08]} 14. fxe4 {[%clk 0:02:02]}  Nxd4 {[%clk 0:00:39]} 15. Nxd4 {[%clk 0:01:40]}  exd4 {[%clk 0:00:40]} 16. Bc4 {[%clk 0:01:31]}  Qh4+ {[%clk 0:00:39]} 0-1


[Site "https://www.chess.com"]

[Event "Titled Tuesday Blitz March 28 Late 2023"]
[White "Buchenau, Frank"]
[Black "MKlose11"]
[WhiteFideId "4604350"]
[WhiteElo "2157"]
[BlackElo "2534"]
[Result "0-1"]
[Round "08"]
[TimeControl "180+2"]
[Date "2023.03.28"]
[WhiteClock "0:00:10"]
[BlackClock "0:01:31"]

1. e4 {[%clk 0:03:00]}  Nf6 {[%clk 0:03:00]} 2. e5 {[%clk 0:02:59]}  Nd5 {[%clk 0:03:01]} 3. d4 {[%clk 0:02:59]}  d6 {[%clk 0:03:00]} 4. Nf3 {[%clk 0:02:59]}  dxe5 {[%clk 0:02:58]} 5. Nxe5 {[%clk 0:02:58]}  e6 {[%clk 0:02:57]} 6. c4 {[%clk 0:02:56]}  Nf6 {[%clk 0:02:57]} 7. Nc3 {[%clk 0:02:54]}  Nbd7 {[%clk 0:02:57]} 8. Nf3 {[%clk 0:02:50]}  Be7 {[%clk 0:02:55]} 9. Be2 {[%clk 0:02:45]}  b6 {[%clk 0:02:55]} 10. O-O {[%clk 0:02:40]}  Bb7 {[%clk 0:02:55]} 11. Bf4 {[%clk 0:02:31]}  O-O {[%clk 0:02:55]} 12. Re1 {[%clk 0:02:26]}  a6 {[%clk 0:02:54]} 13. Qc2 {[%clk 0:02:22]}  c5 {[%clk 0:02:54]} 14. Rad1 {[%clk 0:02:11]}  Qc8 {[%clk 0:02:53]} 15. d5 {[%clk 0:02:08]}  exd5 {[%clk 0:02:54]} 16. cxd5 {[%clk 0:02:06]}  Re8 {[%clk 0:02:54]} 17. a4 {[%clk 0:01:55]}  Nh5 {[%clk 0:02:48]} 18. Bg5 {[%clk 0:01:48]}  h6 {[%clk 0:02:30]} 19. d6 {[%clk 0:01:20]}  Bf6 {[%clk 0:02:08]} 20. Bxf6 {[%clk 0:01:15]}  Nhxf6 {[%clk 0:02:09]} 21. Nd2 {[%clk 0:01:03]}  Ne5 {[%clk 0:02:04]} 22. Nde4 {[%clk 0:00:49]}  Nxe4 {[%clk 0:02:00]} 23. Nxe4 {[%clk 0:00:49]}  Qc6 {[%clk 0:02:00]} 24. Bf1 {[%clk 0:00:39]}  Rad8 {[%clk 0:01:58]} 25. a5 {[%clk 0:00:26]}  Nd7 {[%clk 0:01:35]} 26. axb6 {[%clk 0:00:25]}  Rxe4 {[%clk 0:01:32]} 27. Rxe4 {[%clk 0:00:19]}  Qxe4 {[%clk 0:01:32]} 28. Qxe4 {[%clk 0:00:19]}  Bxe4 {[%clk 0:01:33]} 29. Bxa6 {[%clk 0:00:17]}  Nxb6 {[%clk 0:01:34]} 30. f3 {[%clk 0:00:15]}  Bd5 {[%clk 0:01:32]} 31. Rc1 {[%clk 0:00:14]}  c4 {[%clk 0:01:32]} 32. Rd1 {[%clk 0:00:12]}  Rxd6 {[%clk 0:01:31]} 33. Kf2 {[%clk 0:00:10]}  Kf8 {[%clk 0:01:31]} 0-1


[Site "https://www.chess.com"]

[Event "Titled Tuesday Blitz March 28 Late 2023"]
[White "sissahungrychess"]
[Black "cryptoguru02"]
[WhiteElo "2391"]
[BlackElo "2523"]
[Result "0-1"]
[Round "08"]
[TimeControl "180+2"]
[Date "2023.03.28"]
[WhiteClock "0:00:01"]
[BlackClock "0:00:39"]

1. c4 {[%clk 0:02:54]}  g6 {[%clk 0:03:00]} 2. g3 {[%clk 0:02:54]}  Bg7 {[%clk 0:03:01]} 3. Bg2 {[%clk 0:02:54]}  Nf6 {[%clk 0:02:59]} 4. Nc3 {[%clk 0:02:54]}  O-O {[%clk 0:02:58]} 5. Nf3 {[%clk 0:02:54]}  e6 {[%clk 0:02:58]} 6. O-O {[%clk 0:02:55]}  d5 {[%clk 0:02:59]} 7. cxd5 {[%clk 0:02:55]}  exd5 {[%clk 0:03:00]} 8. d4 {[%clk 0:02:55]}  c6 {[%clk 0:03:00]} 9. Bf4 {[%clk 0:02:51]}  Bf5 {[%clk 0:02:59]} 10. h3 {[%clk 0:02:49]}  Nbd7 {[%clk 0:02:56]} 11. g4 {[%clk 0:02:46]}  Be6 {[%clk 0:02:56]} 12. Ng5 {[%clk 0:02:46]}  Re8 {[%clk 0:02:52]} 13. e3 {[%clk 0:02:40]}  Nf8 {[%clk 0:02:48]} 14. Nxe6 {[%clk 0:02:37]}  Nxe6 {[%clk 0:02:48]} 15. Be5 {[%clk 0:02:38]}  Nd7 {[%clk 0:02:42]} 16. Bg3 {[%clk 0:02:35]}  Qb6 {[%clk 0:02:37]} 17. Qb3 {[%clk 0:02:34]}  Qxb3 {[%clk 0:02:35]} 18. axb3 {[%clk 0:02:35]}  a6 {[%clk 0:02:28]} 19. b4 {[%clk 0:02:35]}  Bf8 {[%clk 0:02:24]} 20. Na2 {[%clk 0:02:22]}  Ng5 {[%clk 0:02:20]} 21. Rfc1 {[%clk 0:02:13]}  Ne4 {[%clk 0:02:18]} 22. Bxe4 {[%clk 0:02:03]}  dxe4 {[%clk 0:02:17]} 23. Kf1 {[%clk 0:01:53]}  Nb6 {[%clk 0:02:15]} 24. Ke2 {[%clk 0:01:39]}  Nd5 {[%clk 0:02:15]} 25. Rc4 {[%clk 0:01:40]}  a5 {[%clk 0:02:07]} 26. Nc3 {[%clk 0:01:09]}  Nxb4 {[%clk 0:01:50]} 27. Nd1 {[%clk 0:00:54]}  Nd5 {[%clk 0:01:43]} 28. Rc2 {[%clk 0:00:46]}  Bb4 {[%clk 0:01:39]} 29. b3 {[%clk 0:00:45]}  f5 {[%clk 0:01:33]} 30. gxf5 {[%clk 0:00:45]}  gxf5 {[%clk 0:01:34]} 31. Nb2 {[%clk 0:00:45]}  Bc3 {[%clk 0:01:27]} 32. Be5 {[%clk 0:00:43]}  Kf7 {[%clk 0:01:22]} 33. Rg1 {[%clk 0:00:35]}  Bxb2 {[%clk 0:01:21]} 34. Rxb2 {[%clk 0:00:18]}  Rg8 {[%clk 0:01:20]} 35. Rg3 {[%clk 0:00:17]}  h5 {[%clk 0:01:15]} 36. Rb1 {[%clk 0:00:16]}  h4 {[%clk 0:01:12]} 37. Rxg8 {[%clk 0:00:16]}  Rxg8 {[%clk 0:01:13]} 38. Ra1 {[%clk 0:00:16]}  b6 {[%clk 0:01:09]} 39. Kf1 {[%clk 0:00:17]}  Ke6 {[%clk 0:01:09]} 40. Ra2 {[%clk 0:00:15]}  Rc8 {[%clk 0:00:59]} 41. Ra1 {[%clk 0:00:15]}  c5 {[%clk 0:00:57]} 42. Ke2 {[%clk 0:00:15]}  c4 {[%clk 0:00:52]} 43. bxc4 {[%clk 0:00:16]}  Rxc4 {[%clk 0:00:52]} 44. Rg1 {[%clk 0:00:17]}  Rc2+ {[%clk 0:00:50]} 45. Kd1 {[%clk 0:00:17]}  Rxf2 {[%clk 0:00:50]} 46. Rg6+ {[%clk 0:00:18]}  Ke7 {[%clk 0:00:49]} 47. Rg7+ {[%clk 0:00:07]}  Kf8 {[%clk 0:00:47]} 48. Rh7 {[%clk 0:00:07]}  Nxe3+ {[%clk 0:00:47]} 49. Kc1 {[%clk 0:00:05]}  Nc4 {[%clk 0:00:43]} 50. Rxh4 {[%clk 0:00:02]}  e3 {[%clk 0:00:43]} 51. Bg3 {[%clk 0:00:01]}  Rf3 {[%clk 0:00:39]} 0-1


[Site "https://www.chess.com"]

[Event "Titled Tuesday Blitz March 28 Late 2023"]
[White "ArturoCaceres"]
[Black "Remolar Gallen, Jose"]
[BlackFideId "2215187"]
[WhiteElo "2388"]
[BlackElo "2223"]
[Result "1/2-1/2"]
[Round "08"]
[TimeControl "180+2"]
[Date "2023.03.28"]
[WhiteClock "0:00:03"]
[BlackClock "0:00:02"]

1. e4 {[%clk 0:02:53]}  e5 {[%clk 0:02:58]} 2. Nf3 {[%clk 0:02:47]}  Nc6 {[%clk 0:02:57]} 3. Bb5 {[%clk 0:02:47]}  a6 {[%clk 0:02:57]} 4. Ba4 {[%clk 0:02:46]}  Nf6 {[%clk 0:02:53]} 5. O-O {[%clk 0:02:43]}  Bc5 {[%clk 0:02:51]} 6. Re1 {[%clk 0:02:40]}  O-O {[%clk 0:02:45]} 7. c3 {[%clk 0:02:40]}  d6 {[%clk 0:02:40]} 8. d4 {[%clk 0:02:38]}  exd4 {[%clk 0:02:39]} 9. cxd4 {[%clk 0:02:38]}  Ba7 {[%clk 0:02:39]} 10. a3 {[%clk 0:02:20]}  Bg4 {[%clk 0:02:37]} 11. Bxc6 {[%clk 0:02:08]}  bxc6 {[%clk 0:02:37]} 12. Nc3 {[%clk 0:02:06]}  Re8 {[%clk 0:02:33]} 13. h3 {[%clk 0:02:04]}  Bxf3 {[%clk 0:02:30]} 14. gxf3 {[%clk 0:02:05]}  Nh5 {[%clk 0:02:25]} 15. f4 {[%clk 0:01:50]}  g6 {[%clk 0:02:04]} 16. Be3 {[%clk 0:01:47]}  Qh4 {[%clk 0:02:01]} 17. Qg4 {[%clk 0:01:43]}  Qxg4+ {[%clk 0:02:01]} 18. hxg4 {[%clk 0:01:44]}  Nf6 {[%clk 0:02:02]} 19. f3 {[%clk 0:01:40]}  a5 {[%clk 0:01:52]} 20. Kg2 {[%clk 0:01:37]}  Rab8 {[%clk 0:01:52]} 21. Na4 {[%clk 0:01:37]}  Nd7 {[%clk 0:01:38]} 22. Rac1 {[%clk 0:01:36]}  Nb6 {[%clk 0:01:38]} 23. b3 {[%clk 0:01:19]}  Nxa4 {[%clk 0:01:15]} 24. bxa4 {[%clk 0:01:14]}  Rb2+ {[%clk 0:01:14]} 25. Kg3 {[%clk 0:01:12]}  Rb3 {[%clk 0:01:09]} 26. Rxc6 {[%clk 0:01:09]}  Bb6 {[%clk 0:01:10]} 27. Bf2 {[%clk 0:00:59]}  Rxa3 {[%clk 0:01:01]} 28. d5 {[%clk 0:00:59]}  Bxf2+ {[%clk 0:00:51]} 29. Kxf2 {[%clk 0:00:58]}  Rb8 {[%clk 0:00:49]} 30. Kg2 {[%clk 0:00:39]}  Rb2+ {[%clk 0:00:47]} 31. Kg3 {[%clk 0:00:38]}  Rbb3 {[%clk 0:00:43]} 32. Rf1 {[%clk 0:00:37]}  Rxa4 {[%clk 0:00:43]} 33. e5 {[%clk 0:00:34]}  dxe5 {[%clk 0:00:36]} 34. fxe5 {[%clk 0:00:34]}  Rd4 {[%clk 0:00:36]} 35. e6 {[%clk 0:00:13]}  fxe6 {[%clk 0:00:26]} 36. dxe6 {[%clk 0:00:12]}  Rd6 {[%clk 0:00:12]} 37. Rxc7 {[%clk 0:00:10]}  Rxe6 {[%clk 0:00:12]} 38. Rd1 {[%clk 0:00:10]}  Rf6 {[%clk 0:00:10]} 39. Rd8+ {[%clk 0:00:08]}  Rf8 {[%clk 0:00:10]} 40. Rxf8+ {[%clk 0:00:05]}  Kxf8 {[%clk 0:00:11]} 41. Rxh7 {[%clk 0:00:05]}  a4 {[%clk 0:00:11]} 42. Ra7 {[%clk 0:00:05]}  a3 {[%clk 0:00:12]} 43. Kg2 {[%clk 0:00:06]}  Rb2+ {[%clk 0:00:08]} 44. Kg3 {[%clk 0:00:06]}  a2 {[%clk 0:00:09]} 45. Kf4 {[%clk 0:00:06]}  Rf2 {[%clk 0:00:09]} 46. Kg3 {[%clk 0:00:05]}  Rd2 {[%clk 0:00:09]} 47. f4 {[%clk 0:00:05]}  Rd3+ {[%clk 0:00:07]} 48. Kh4 {[%clk 0:00:04]}  Rf3 {[%clk 0:00:05]} 49. Kg5 {[%clk 0:00:05]}  Rf2 {[%clk 0:00:05]} 50. Ra6 {[%clk 0:00:02]}  Kf7 {[%clk 0:00:05]} 51. Rf6+ {[%clk 0:00:02]}  Ke7 {[%clk 0:00:05]} 52. Ra6 {[%clk 0:00:03]}  Kf7 {[%clk 0:00:05]} 53. Ra7+ {[%clk 0:00:02]}  Ke6 {[%clk 0:00:04]} 54. Ra6+ {[%clk 0:00:03]}  Kf7 {[%clk 0:00:02]} 1/2-1/2


[Site "https://www.chess.com"]

[Event "Titled Tuesday Blitz March 28 Late 2023"]
[White "Yurasova, Daria"]
[Black "Guzman Moneo, Alberto"]
[WhiteFideId "34146919"]
[BlackFideId "2209616"]
[WhiteElo "2134"]
[BlackElo "2157"]
[Result "0-1"]
[Round "08"]
[TimeControl "180+2"]
[Date "2023.03.28"]
[WhiteClock "0:00:01"]
[BlackClock "0:00:06"]

1. e4 {[%clk 0:03:00]}  c5 {[%clk 0:02:59]} 2. Nf3 {[%clk 0:02:59]}  Nc6 {[%clk 0:02:59]} 3. d4 {[%clk 0:02:59]}  cxd4 {[%clk 0:03:00]} 4. Nxd4 {[%clk 0:03:00]}  g6 {[%clk 0:03:00]} 5. Nxc6 {[%clk 0:02:55]}  bxc6 {[%clk 0:03:01]} 6. Qd4 {[%clk 0:02:55]}  Nf6 {[%clk 0:02:59]} 7. e5 {[%clk 0:02:55]}  Nd5 {[%clk 0:02:59]} 8. Bc4 {[%clk 0:02:22]}  Bg7 {[%clk 0:02:52]} 9. Bxd5 {[%clk 0:02:18]}  Qa5+ {[%clk 0:02:34]} 10. Nc3 {[%clk 0:02:16]}  cxd5 {[%clk 0:02:35]} 11. Bd2 {[%clk 0:02:11]}  Bb7 {[%clk 0:02:15]} 12. O-O {[%clk 0:02:02]}  O-O {[%clk 0:02:07]} 13. b4 {[%clk 0:01:51]}  Qb6 {[%clk 0:01:51]} 14. Be3 {[%clk 0:01:51]}  Qxd4 {[%clk 0:01:46]} 15. Bxd4 {[%clk 0:01:52]}  Rfc8 {[%clk 0:01:41]} 16. Na4 {[%clk 0:01:40]}  Rxc2 {[%clk 0:01:36]} 17. Nc5 {[%clk 0:01:40]}  Bc6 {[%clk 0:01:33]} 18. Rfc1 {[%clk 0:01:27]}  Rc4 {[%clk 0:01:21]} 19. Rxc4 {[%clk 0:01:20]}  dxc4 {[%clk 0:01:22]} 20. f4 {[%clk 0:00:43]}  d6 {[%clk 0:01:19]} 21. Na6 {[%clk 0:00:43]}  Rc8 {[%clk 0:01:03]} 22. a4 {[%clk 0:00:36]}  Bb7 {[%clk 0:00:59]} 23. b5 {[%clk 0:00:36]}  Bxa6 {[%clk 0:00:54]} 24. bxa6 {[%clk 0:00:36]}  dxe5 {[%clk 0:00:54]} 25. fxe5 {[%clk 0:00:35]}  Rc6 {[%clk 0:00:49]} 26. Bxa7 {[%clk 0:00:30]}  Bxe5 {[%clk 0:00:41]} 27. Re1 {[%clk 0:00:24]}  f6 {[%clk 0:00:36]} 28. Be3 {[%clk 0:00:17]}  Rxa6 {[%clk 0:00:35]} 29. Rc1 {[%clk 0:00:13]}  Rxa4 {[%clk 0:00:34]} 30. Kf2 {[%clk 0:00:14]}  Bb2 {[%clk 0:00:30]} 31. Rc2 {[%clk 0:00:14]}  c3 {[%clk 0:00:30]} 32. Ke2 {[%clk 0:00:14]}  e5 {[%clk 0:00:28]} 33. Kd3 {[%clk 0:00:14]}  Kf7 {[%clk 0:00:26]} 34. Bf2 {[%clk 0:00:14]}  Ke6 {[%clk 0:00:26]} 35. Be1 {[%clk 0:00:14]}  e4+ {[%clk 0:00:25]} 36. Ke3 {[%clk 0:00:14]}  Rc4 {[%clk 0:00:22]} 37. g4 {[%clk 0:00:11]}  f5 {[%clk 0:00:22]} 38. h3 {[%clk 0:00:11]}  h5 {[%clk 0:00:18]} 39. gxf5+ {[%clk 0:00:10]}  gxf5 {[%clk 0:00:18]} 40. Bg3 {[%clk 0:00:11]}  Rc8 {[%clk 0:00:17]} 41. Be1 {[%clk 0:00:09]}  Rd8 {[%clk 0:00:17]} 42. Ke2 {[%clk 0:00:09]}  Rd3 {[%clk 0:00:17]} 43. h4 {[%clk 0:00:09]}  f4 {[%clk 0:00:17]} 44. Bf2 {[%clk 0:00:05]}  f3+ {[%clk 0:00:16]} 45. Kf1 {[%clk 0:00:04]}  e3 {[%clk 0:00:15]} 46. Be1 {[%clk 0:00:04]}  Kf5 {[%clk 0:00:14]} 47. Rh2 {[%clk 0:00:03]}  Ke4 {[%clk 0:00:13]} 48. Rh3 {[%clk 0:00:03]}  Rd1 {[%clk 0:00:12]} 49. Rg3 {[%clk 0:00:03]}  f2 {[%clk 0:00:11]} 50. Kg2 {[%clk 0:00:03]}  Rxe1 {[%clk 0:00:11]} 51. Kh2 {[%clk 0:00:02]}  e2 {[%clk 0:00:08]} 52. Rg5 {[%clk 0:00:01]}  Rh1+ {[%clk 0:00:06]} 0-1


[Site "https://www.chess.com"]

[Event "Titled Tuesday Blitz March 28 Late 2023"]
[White "Vovk, Orest"]
[Black "Jorajuria Mendoza, Algol"]
[WhiteFideId "14113490"]
[BlackFideId "5128897"]
[WhiteElo "2215"]
[BlackElo "2076"]
[Result "1-0"]
[Round "08"]
[TimeControl "180+2"]
[Date "2023.03.28"]
[WhiteClock "0:00:52"]
[BlackClock "0:01:02"]

1. h4 {[%clk 0:02:35]}  d5 {[%clk 0:02:55]} 2. h5 {[%clk 0:02:34]}  h6 {[%clk 0:02:53]} 3. e4 {[%clk 0:02:34]}  dxe4 {[%clk 0:02:52]} 4. Nc3 {[%clk 0:02:33]}  Nf6 {[%clk 0:02:52]} 5. Qe2 {[%clk 0:02:32]}  Bf5 {[%clk 0:02:50]} 6. Qb5+ {[%clk 0:02:32]}  Bd7 {[%clk 0:02:46]} 7. Qxb7 {[%clk 0:02:32]}  Bc6 {[%clk 0:02:47]} 8. Bb5 {[%clk 0:02:32]}  Nbd7 {[%clk 0:02:18]} 9. Bxc6 {[%clk 0:02:26]}  Rb8 {[%clk 0:02:19]} 10. Qxa7 {[%clk 0:02:26]}  e6 {[%clk 0:02:17]} 11. Nxe4 {[%clk 0:02:04]}  Be7 {[%clk 0:01:53]} 12. Nxf6+ {[%clk 0:01:57]}  Bxf6 {[%clk 0:01:47]} 13. Bxd7+ {[%clk 0:01:57]}  Kxd7 {[%clk 0:01:48]} 14. Nf3 {[%clk 0:01:54]}  Ke7 {[%clk 0:01:42]} 15. Qc5+ {[%clk 0:01:52]}  Qd6 {[%clk 0:01:40]} 16. Qxd6+ {[%clk 0:01:52]}  cxd6 {[%clk 0:01:41]} 17. d4 {[%clk 0:01:51]}  Rhc8 {[%clk 0:01:36]} 18. c3 {[%clk 0:01:51]}  Ra8 {[%clk 0:01:36]} 19. a4 {[%clk 0:01:50]}  Rc4 {[%clk 0:01:35]} 20. a5 {[%clk 0:01:50]}  Kd7 {[%clk 0:01:34]} 21. Bd2 {[%clk 0:01:49]}  Bd8 {[%clk 0:01:27]} 22. b4 {[%clk 0:01:48]}  Kc6 {[%clk 0:01:26]} 23. Ke2 {[%clk 0:01:46]}  Kb5 {[%clk 0:01:26]} 24. Kd3 {[%clk 0:01:46]}  Rac8 {[%clk 0:01:25]} 25. Rh3 {[%clk 0:01:40]}  d5 {[%clk 0:01:23]} 26. Ne5 {[%clk 0:01:26]}  R4c7 {[%clk 0:01:22]} 27. Rf3 {[%clk 0:01:21]}  f6 {[%clk 0:01:19]} 28. Ng6 {[%clk 0:01:16]}  Rc6 {[%clk 0:01:13]} 29. a6 {[%clk 0:01:06]}  Rxa6 {[%clk 0:01:11]} 30. Rxa6 {[%clk 0:01:07]}  Kxa6 {[%clk 0:01:11]} 31. Nf8 {[%clk 0:01:06]}  e5 {[%clk 0:01:07]} 32. dxe5 {[%clk 0:00:58]}  fxe5 {[%clk 0:01:08]} 33. Rf7 {[%clk 0:00:56]}  e4+ {[%clk 0:01:03]} 34. Ke2 {[%clk 0:00:54]}  Bf6 {[%clk 0:01:02]} 35. Nd7 {[%clk 0:00:52]} 1-0


[Site "https://www.chess.com"]

[Event "Titled Tuesday Blitz March 28 Late 2023"]
[White "Estrada Nieto, Julian"]
[Black "Torres Boch, Jose Francisco"]
[WhiteFideId "5101018"]
[BlackFideId "2278383"]
[WhiteElo "2176"]
[BlackElo "2073"]
[Result "1-0"]
[Round "08"]
[TimeControl "180+2"]
[Date "2023.03.28"]
[WhiteClock "0:01:41"]
[BlackClock "0:02:09"]

1. e4 {[%clk 0:03:00]}  c5 {[%clk 0:02:57]} 2. Nf3 {[%clk 0:03:01]}  d6 {[%clk 0:02:57]} 3. Bb5+ {[%clk 0:03:01]}  Nd7 {[%clk 0:02:56]} 4. d4 {[%clk 0:03:00]}  cxd4 {[%clk 0:02:56]} 5. Qxd4 {[%clk 0:03:01]}  a6 {[%clk 0:02:55]} 6. Bxd7+ {[%clk 0:03:01]}  Bxd7 {[%clk 0:02:56]} 7. Nc3 {[%clk 0:03:01]}  Rc8 {[%clk 0:02:56]} 8. O-O {[%clk 0:02:55]}  e5 {[%clk 0:02:55]} 9. Qd3 {[%clk 0:02:55]}  Nf6 {[%clk 0:02:55]} 10. Bg5 {[%clk 0:02:54]}  Qc7 {[%clk 0:02:55]} 11. Bxf6 {[%clk 0:02:36]}  gxf6 {[%clk 0:02:56]} 12. Rac1 {[%clk 0:02:35]}  Be6 {[%clk 0:02:52]} 13. Nd5 {[%clk 0:02:34]}  Bxd5 {[%clk 0:02:48]} 14. Qxd5 {[%clk 0:02:33]}  Qc6 {[%clk 0:02:42]} 15. Rfd1 {[%clk 0:02:24]}  Qxd5 {[%clk 0:02:42]} 16. Rxd5 {[%clk 0:02:24]}  Bh6 {[%clk 0:02:41]} 17. Rb1 {[%clk 0:02:15]}  Rxc2 {[%clk 0:02:39]} 18. Rxd6 {[%clk 0:02:14]}  Ke7 {[%clk 0:02:36]} 19. Rb6 {[%clk 0:02:14]}  Rhc8 {[%clk 0:02:32]} 20. Rxb7+ {[%clk 0:02:07]}  Kf8 {[%clk 0:02:28]} 21. g3 {[%clk 0:02:07]}  Re2 {[%clk 0:02:28]} 22. Nh4 {[%clk 0:01:52]}  Rcc2 {[%clk 0:02:21]} 23. Rb8+ {[%clk 0:01:47]}  Kg7 {[%clk 0:02:11]} 24. Nf5+ {[%clk 0:01:42]}  Kg6 {[%clk 0:02:11]} 25. Rg8+ {[%clk 0:01:41]}  Kh5 {[%clk 0:02:09]} 26. g4# {[%clk 0:01:41]} 1-0


[Site "https://www.chess.com"]

[Event "Titled Tuesday Blitz March 28 Late 2023"]
[White "Golubev, Mikhail"]
[Black "Skaric, Djuro"]
[WhiteFideId "14100983"]
[BlackFideId "934569"]
[WhiteElo "2374"]
[BlackElo "2282"]
[Result "1/2-1/2"]
[Round "08"]
[TimeControl "180+2"]
[Date "2023.03.28"]
[WhiteClock "0:00:07"]
[BlackClock "0:01:00"]

1. e4 {[%clk 0:03:00]}  d6 {[%clk 0:03:00]} 2. d4 {[%clk 0:03:00]}  g6 {[%clk 0:03:00]} 3. c4 {[%clk 0:02:59]}  Bg7 {[%clk 0:03:01]} 4. Nc3 {[%clk 0:02:59]}  Nf6 {[%clk 0:03:01]} 5. Be2 {[%clk 0:02:57]}  O-O {[%clk 0:03:01]} 6. Be3 {[%clk 0:02:57]}  Nc6 {[%clk 0:03:01]} 7. d5 {[%clk 0:02:56]}  Nb8 {[%clk 0:03:00]} 8. Nf3 {[%clk 0:02:51]}  e5 {[%clk 0:03:00]} 9. dxe6 {[%clk 0:02:50]}  Bxe6 {[%clk 0:02:58]} 10. Nd4 {[%clk 0:02:45]}  Bd7 {[%clk 0:02:57]} 11. O-O {[%clk 0:02:44]}  Re8 {[%clk 0:02:55]} 12. Qc2 {[%clk 0:02:36]}  Nc6 {[%clk 0:02:55]} 13. Rad1 {[%clk 0:02:30]}  Nxd4 {[%clk 0:02:51]} 14. Bxd4 {[%clk 0:02:28]}  Bc6 {[%clk 0:02:51]} 15. f3 {[%clk 0:02:22]}  Nh5 {[%clk 0:02:49]} 16. Bxg7 {[%clk 0:02:20]}  Kxg7 {[%clk 0:02:48]} 17. f4 {[%clk 0:02:13]}  Qh4 {[%clk 0:02:34]} 18. Bxh5 {[%clk 0:01:48]}  Qxh5 {[%clk 0:02:32]} 19. Nd5 {[%clk 0:01:16]}  Bxd5 {[%clk 0:02:24]} 20. Rxd5 {[%clk 0:01:09]}  Qg4 {[%clk 0:02:20]} 21. Qc3+ {[%clk 0:00:47]}  Kg8 {[%clk 0:02:19]} 22. Rg5 {[%clk 0:00:28]}  Qe6 {[%clk 0:02:15]} 23. Re1 {[%clk 0:00:18]}  c6 {[%clk 0:02:13]} 24. h4 {[%clk 0:00:12]}  Re7 {[%clk 0:01:56]} 25. h5 {[%clk 0:00:12]}  Rae8 {[%clk 0:01:55]} 26. hxg6 {[%clk 0:00:12]}  fxg6 {[%clk 0:01:54]} 27. f5 {[%clk 0:00:10]}  Qe5 {[%clk 0:01:53]} 28. Qf3 {[%clk 0:00:08]}  Rg7 {[%clk 0:01:22]} 29. Kh1 {[%clk 0:00:08]}  gxf5 {[%clk 0:01:17]} 30. Rxf5 {[%clk 0:00:07]}  Qe7 {[%clk 0:01:17]} 31. Rf1 {[%clk 0:00:07]}  Kh8 {[%clk 0:01:02]} 32. Rf8+ {[%clk 0:00:06]}  Rxf8 {[%clk 0:01:02]} 33. Qxf8+ {[%clk 0:00:07]}  Qxf8 {[%clk 0:01:02]} 34. Rxf8+ {[%clk 0:00:07]}  Rg8 {[%clk 0:01:03]} 35. Rf7 {[%clk 0:00:07]}  Rg7 {[%clk 0:01:03]} 36. Rf8+ {[%clk 0:00:07]}  Rg8 {[%clk 0:01:03]} 37. Rf7 {[%clk 0:00:07]}  Rg7 {[%clk 0:01:00]} 38. Rf8+ {[%clk 0:00:07]} 1/2-1/2


[Site "https://www.chess.com"]